[Event "*** Titled Tuesday Blitz"]
[Site "Chess.com"]
[Date "2021.03.30"]
[Round "2"]
[White "ChessQueen"]
[Black "karinachess1"]
[Result "1-0"]
[WhiteElo "2710"]
[BlackElo "2491"]
[TimeControl "180+1"]
[EndTime "10:17:02 PDT"]
[Termination "ChessQueen won by checkmate"]

1. e4 {[%clk 0:03:00.9]} 1... d6 {[%clk 0:02:56.9]} 2. d4 {[%clk 0:02:59.9]}
2... Nf6 {[%clk 0:02:55.5]} 3. Nc3 {[%clk 0:02:59.7]} 3... e5 {[%clk 0:02:55.6]}
4. Nf3 {[%clk 0:02:58.2]} 4... Nbd7 {[%clk 0:02:54.4]} 5. Bc4 {[%clk 0:02:56.7]}
5... Be7 {[%clk 0:02:53.7]} 6. O-O {[%clk 0:02:56]} 6... O-O {[%clk 0:02:53.8]}
7. a4 {[%clk 0:02:56.1]} 7... a6 {[%clk 0:02:53.2]} 8. Re1 {[%clk 0:02:55.4]}
8... b6 {[%clk 0:02:51]} 9. Ba2 {[%clk 0:02:55.7]} 9... c6 {[%clk 0:02:49.6]}
10. d5 {[%clk 0:02:53]} 10... Bb7 {[%clk 0:02:44]} 11. dxc6 {[%clk 0:02:37.6]}
11... Bxc6 {[%clk 0:02:44.9]} 12. Nd5 {[%clk 0:02:25.9]} 12... Bxd5 {[%clk
0:02:23.9]} 13. Bxd5 {[%clk 0:02:24.7]} 13... Nxd5 {[%clk 0:02:21.4]} 14. Qxd5
{[%clk 0:02:24.4]} 14... Nf6 {[%clk 0:02:18.5]} 15. Qd3 {[%clk 0:02:22.6]} 15...
Qc7 {[%clk 0:02:17.9]} 16. c4 {[%clk 0:02:17.4]} 16... Rfc8 {[%clk 0:02:07]} 17.
b3 {[%clk 0:02:17.4]} 17... Nd7 {[%clk 0:02:03.5]} 18. Rb1 {[%clk 0:01:48.1]}
18... Rab8 {[%clk 0:01:56.7]} 19. Ba3 {[%clk 0:01:30.5]} 19... Nc5 {[%clk
0:01:43.3]} 20. Qd5 {[%clk 0:01:26.1]} 20... Ne6 {[%clk 0:01:26]} 21. Red1
{[%clk 0:01:19.9]} 21... Rd8 {[%clk 0:01:12.6]} 22. g3 {[%clk 0:01:16.6]} 22...
h6 {[%clk 0:00:58.6]} 23. h4 {[%clk 0:01:15.6]} 23... Kf8 {[%clk 0:00:41.2]} 24.
Rd2 {[%clk 0:01:11.7]} 24... Rd7 {[%clk 0:00:34.2]} 25. Qd3 {[%clk 0:01:04.2]}
25... Rbd8 {[%clk 0:00:30.3]} 26. Rbd1 {[%clk 0:01:01.7]} 26... Qc6 {[%clk
0:00:28.1]} 27. Qc2 {[%clk 0:01:00.4]} 27... f6 {[%clk 0:00:22.7]} 28. Kg2
{[%clk 0:00:59.3]} 28... Nc5 {[%clk 0:00:22.8]} 29. Rd5 {[%clk 0:00:59]} 29...
b5 {[%clk 0:00:17.3]} 30. axb5 {[%clk 0:00:56.5]} 30... axb5 {[%clk 0:00:18.2]}
31. h5 {[%clk 0:00:55.1]} 31... bxc4 {[%clk 0:00:17]} 32. Qxc4 {[%clk
0:00:54.5]} 32... Qb7 {[%clk 0:00:06.5]} 33. b4 {[%clk 0:00:45]} 33... Ne6
{[%clk 0:00:05.8]} 34. Nh4 {[%clk 0:00:41.4]} 34... Nd4 {[%clk 0:00:06.1]} 35.
Ng6+ {[%clk 0:00:40.7]} 35... Ke8 {[%clk 0:00:06.8]} 36. R5xd4 {[%clk
0:00:37.8]} 36... exd4 {[%clk 0:00:06.7]} 37. Qg8+ {[%clk 0:00:37.9]} 37... Bf8
{[%clk 0:00:05.4]} 38. Qxf8# {[%clk 0:00:38.2]} 1-0

[Event "*** Titled Tuesday Blitz"]
[Site "Chess.com"]
[Date "2021.03.30"]
[Round "2"]
[White "petincash"]
[Black "ENajer77"]
[Result "0-1"]
[WhiteElo "2310"]
[BlackElo "2625"]
[TimeControl "180+1"]
[EndTime "10:17:02 PDT"]
[Termination "ENajer77 won on time"]

1. e4 {[%clk 0:03:00.9]} 1... c6 {[%clk 0:02:59.9]} 2. d4 {[%clk 0:02:56.2]}
2... d5 {[%clk 0:03:00.4]} 3. exd5 {[%clk 0:02:54.7]} 3... cxd5 {[%clk
0:03:00.7]} 4. Bd3 {[%clk 0:02:55.3]} 4... Nc6 {[%clk 0:03:00.2]} 5. c3 {[%clk
0:02:55.5]} 5... Nf6 {[%clk 0:03:00.4]} 6. Bf4 {[%clk 0:02:54.6]} 6... Bg4
{[%clk 0:03:00.3]} 7. Qb3 {[%clk 0:02:53.9]} 7... Qd7 {[%clk 0:03:00.9]} 8. Nd2
{[%clk 0:02:53]} 8... e6 {[%clk 0:03:01.2]} 9. Ngf3 {[%clk 0:02:53.1]} 9... Bd6
{[%clk 0:03:00.7]} 10. Bg3 {[%clk 0:02:49.2]} 10... O-O {[%clk 0:02:58.9]} 11.
O-O {[%clk 0:02:48.7]} 11... Bxg3 {[%clk 0:02:54.2]} 12. fxg3 {[%clk 0:02:33.4]}
12... Qc7 {[%clk 0:02:48.7]} 13. Rae1 {[%clk 0:02:30.2]} 13... Bh5 {[%clk
0:02:44.5]} 14. Ne5 {[%clk 0:02:00.8]} 14... Nxe5 {[%clk 0:02:40.9]} 15. Rxe5
{[%clk 0:01:59.3]} 15... Bg6 {[%clk 0:02:35.2]} 16. Be2 {[%clk 0:01:36.1]} 16...
b5 {[%clk 0:02:11.9]} 17. g4 {[%clk 0:01:33.9]} 17... Rab8 {[%clk 0:02:06.8]}
18. h4 {[%clk 0:01:28.2]} 18... Ne4 {[%clk 0:02:00.3]} 19. Nxe4 {[%clk
0:01:15.6]} 19... Bxe4 {[%clk 0:02:00.5]} 20. a3 {[%clk 0:00:54.9]} 20... a5
{[%clk 0:01:49.6]} 21. g5 {[%clk 0:00:51.5]} 21... b4 {[%clk 0:01:48.1]} 22.
axb4 {[%clk 0:00:51.3]} 22... axb4 {[%clk 0:01:48.7]} 23. c4 {[%clk 0:00:51.2]}
23... dxc4 {[%clk 0:00:53.2]} 24. Bxc4 {[%clk 0:00:51]} 24... Bf5 {[%clk
0:00:53.5]} 25. h5 {[%clk 0:00:40.8]} 25... Rbd8 {[%clk 0:00:50.1]} 26. Rexf5
{[%clk 0:00:09.2]} 26... exf5 {[%clk 0:00:50.5]} 27. Rxf5 {[%clk 0:00:06.4]}
27... Rxd4 {[%clk 0:00:45.3]} 28. Bd5 {[%clk 0:00:01.2]} 28... g6 {[%clk
0:00:20.9]} 0-1

[Event "*** Titled Tuesday Blitz"]
[Site "Chess.com"]
[Date "2021.03.30"]
[Round "2"]
[White "FeketeBarika"]
[Black "SARGISMV"]
[Result "0-1"]
[WhiteElo "2248"]
[BlackElo "2457"]
[TimeControl "180+1"]
[EndTime "10:17:02 PDT"]
[Termination "SARGISMV won by resignation"]

1. Nf3 {[%clk 0:03:00.1]} 1... Nf6 {[%clk 0:02:55.5]} 2. g3 {[%clk 0:03:01]}
2... d5 {[%clk 0:02:55.4]} 3. Bg2 {[%clk 0:03:01.9]} 3... c6 {[%clk 0:02:55.7]}
4. O-O {[%clk 0:03:02.8]} 4... Bg4 {[%clk 0:02:55.5]} 5. c4 {[%clk 0:03:02.8]}
5... e6 {[%clk 0:02:55.6]} 6. cxd5 {[%clk 0:03:01.4]} 6... exd5 {[%clk
0:02:55.7]} 7. Qb3 {[%clk 0:03:02.3]} 7... Qb6 {[%clk 0:02:54.7]} 8. Qc2 {[%clk
0:02:58.1]} 8... Nbd7 {[%clk 0:02:50]} 9. Nc3 {[%clk 0:02:58]} 9... Be7 {[%clk
0:02:46.9]} 10. b3 {[%clk 0:02:52.4]} 10... O-O {[%clk 0:02:39]} 11. Bb2 {[%clk
0:02:51.4]} 11... Rfe8 {[%clk 0:02:38.6]} 12. Na4 {[%clk 0:02:51.2]} 12... Qa6
{[%clk 0:02:34.2]} 13. Rac1 {[%clk 0:02:49.2]} 13... Qxe2 {[%clk 0:02:32.2]} 14.
Rfe1 {[%clk 0:02:48.9]} 14... Qa6 {[%clk 0:02:25.9]} 15. Ne5 {[%clk 0:02:48.5]}
15... Nxe5 {[%clk 0:02:24.5]} 16. Bxe5 {[%clk 0:02:49.4]} 16... Ba3 {[%clk
0:02:21.5]} 17. Rb1 {[%clk 0:02:44.4]} 17... Nd7 {[%clk 0:02:16.3]} 18. Bd4
{[%clk 0:02:40.5]} 18... Be2 {[%clk 0:02:09.6]} 19. Qc3 {[%clk 0:02:34.6]} 19...
Bf8 {[%clk 0:01:57.6]} 20. Be3 {[%clk 0:02:26.9]} 20... Bd3 {[%clk 0:01:53.4]}
21. Rbc1 {[%clk 0:02:22.9]} 21... Be7 {[%clk 0:01:43.5]} 22. Bd4 {[%clk
0:02:15.1]} 22... Bf8 {[%clk 0:01:43.1]} 23. Re3 {[%clk 0:02:10.6]} 23... Rxe3
{[%clk 0:01:42]} 24. dxe3 {[%clk 0:02:08.8]} 24... Bb5 {[%clk 0:01:35.2]} 25.
Nb2 {[%clk 0:02:06.7]} 25... Be2 {[%clk 0:01:34.8]} 26. e4 {[%clk 0:02:00.7]}
26... dxe4 {[%clk 0:01:30.1]} 27. Bxe4 {[%clk 0:02:01.6]} 27... Re8 {[%clk
0:01:29.8]} 28. Qc2 {[%clk 0:01:58.6]} 28... g6 {[%clk 0:01:19.5]} 29. Nc4
{[%clk 0:01:52.6]} 29... Bxc4 {[%clk 0:01:14.4]} 30. bxc4 {[%clk 0:01:53.5]}
30... Bg7 {[%clk 0:01:11]} 31. Bxg7 {[%clk 0:01:52.9]} 31... Kxg7 {[%clk
0:01:11.9]} 32. Qc3+ {[%clk 0:01:52.9]} 32... Nf6 {[%clk 0:01:11.4]} 33. Bd3
{[%clk 0:01:50.4]} 33... Qb6 {[%clk 0:01:03.1]} 34. c5 {[%clk 0:01:48.5]} 34...
Qc7 {[%clk 0:01:02.9]} 35. Rb1 {[%clk 0:01:46.7]} 35... Re7 {[%clk 0:01:00.1]}
36. Qb3 {[%clk 0:01:44.5]} 36... h5 {[%clk 0:00:59.1]} 37. Bc4 {[%clk
0:01:41.1]} 37... Qe5 {[%clk 0:00:58.3]} 38. Qb4 {[%clk 0:01:32.9]} 38... Qd4
{[%clk 0:00:47.5]} 39. Rc1 {[%clk 0:01:24.3]} 39... Ne4 {[%clk 0:00:40.8]} 40.
Rf1 {[%clk 0:01:14.7]} 40... Nxc5 {[%clk 0:00:37]} 41. a4 {[%clk 0:01:01.9]}
41... a5 {[%clk 0:00:34.8]} 42. Qa3 {[%clk 0:00:53.5]} 42... Qxc4 {[%clk
0:00:34.1]} 43. Rc1 {[%clk 0:00:51]} 43... Qb4 {[%clk 0:00:30]} 44. Qxb4 {[%clk
0:00:48]} 44... axb4 {[%clk 0:00:30.2]} 45. Rxc5 {[%clk 0:00:48.9]} 45... Re1+
{[%clk 0:00:30.6]} 46. Kg2 {[%clk 0:00:48.8]} 46... b3 {[%clk 0:00:31.1]} 0-1

[Event "*** Titled Tuesday Blitz"]
[Site "Chess.com"]
[Date "2021.03.30"]
[Round "2"]
[White "Escanor89"]
[Black "nrvisakh"]
[Result "1-0"]
[WhiteElo "2568"]
[BlackElo "2819"]
[TimeControl "180+1"]
[EndTime "10:17:06 PDT"]
[Termination "Escanor89 won by resignation"]

1. c4 {[%clk 0:02:55.8]} 1... e6 {[%clk 0:02:57]} 2. Nc3 {[%clk 0:02:55.7]} 2...
Bb4 {[%clk 0:02:54.5]} 3. Qc2 {[%clk 0:02:53]} 3... Nf6 {[%clk 0:02:53.8]} 4.
Nf3 {[%clk 0:02:51]} 4... O-O {[%clk 0:02:53.2]} 5. a3 {[%clk 0:02:48.7]} 5...
Bxc3 {[%clk 0:02:45.6]} 6. Qxc3 {[%clk 0:02:49.6]} 6... a5 {[%clk 0:02:46.3]} 7.
g3 {[%clk 0:02:44.9]} 7... b6 {[%clk 0:02:45.5]} 8. Bg2 {[%clk 0:02:44.5]} 8...
Bb7 {[%clk 0:02:45.7]} 9. b3 {[%clk 0:02:43.4]} 9... c5 {[%clk 0:02:37.7]} 10.
O-O {[%clk 0:02:41.6]} 10... d5 {[%clk 0:02:37.8]} 11. cxd5 {[%clk 0:02:25]}
11... exd5 {[%clk 0:02:18.9]} 12. d4 {[%clk 0:02:21]} 12... Ne4 {[%clk
0:02:17.3]} 13. Qb2 {[%clk 0:02:16.2]} 13... Re8 {[%clk 0:02:09.9]} 14. Be3
{[%clk 0:02:12.6]} 14... c4 {[%clk 0:02:05.9]} 15. bxc4 {[%clk 0:01:58.9]} 15...
dxc4 {[%clk 0:02:06.8]} 16. Ne5 {[%clk 0:01:43.5]} 16... c3 {[%clk 0:01:59.4]}
17. Qc2 {[%clk 0:01:39]} 17... f5 {[%clk 0:01:58.7]} 18. Bxe4 {[%clk 0:01:23.1]}
18... Bxe4 {[%clk 0:01:55.1]} 19. Qxc3 {[%clk 0:01:23.3]} 19... Bb7 {[%clk
0:01:51.4]} 20. Rab1 {[%clk 0:01:20.3]} 20... Qd5 {[%clk 0:01:48.5]} 21. Qb3
{[%clk 0:01:16.9]} 21... Re6 {[%clk 0:00:47.2]} 22. Qxd5 {[%clk 0:01:15.7]}
22... Bxd5 {[%clk 0:00:48.1]} 23. Rfc1 {[%clk 0:01:15.2]} 23... Nc6 {[%clk
0:00:48.4]} 24. Nxc6 {[%clk 0:01:11.3]} 24... Rxc6 {[%clk 0:00:46.6]} 25. Rxc6
{[%clk 0:01:10]} 25... Bxc6 {[%clk 0:00:47.5]} 26. Rxb6 {[%clk 0:01:09.9]} 26...
Bd5 {[%clk 0:00:47.8]} 27. Bf4 {[%clk 0:00:59.8]} 27... Re8 {[%clk 0:00:41.2]}
28. Be5 {[%clk 0:00:56.8]} 28... Rc8 {[%clk 0:00:41]} 29. Rb8 {[%clk 0:00:51.5]}
29... Rxb8 {[%clk 0:00:40.7]} 30. Bxb8 {[%clk 0:00:52.4]} 30... Bc4 {[%clk
0:00:39.1]} 31. Kf1 {[%clk 0:00:52]} 31... Kf7 {[%clk 0:00:39.2]} 32. Ke1 {[%clk
0:00:52]} 32... g5 {[%clk 0:00:38.8]} 33. Kd2 {[%clk 0:00:50.7]} 33... g4 {[%clk
0:00:38.9]} 34. f3 {[%clk 0:00:44.8]} 34... Bd5 {[%clk 0:00:35]} 35. Ke3 {[%clk
0:00:42.4]} 35... Bc4 {[%clk 0:00:35.2]} 36. Bc7 {[%clk 0:00:40]} 36... a4
{[%clk 0:00:34.8]} 37. Kf2 {[%clk 0:00:36.8]} 37... Bd5 {[%clk 0:00:33.8]} 38.
fxg4 {[%clk 0:00:36.4]} 38... fxg4 {[%clk 0:00:32.8]} 39. Ke3 {[%clk 0:00:37.1]}
39... Bc4 {[%clk 0:00:30]} 40. Kd2 {[%clk 0:00:37.2]} 40... Bd5 {[%clk 0:00:28]}
41. Kd3 {[%clk 0:00:36.9]} 41... Ba2 {[%clk 0:00:26.6]} 42. e4 {[%clk
0:00:36.8]} 42... Bb1+ {[%clk 0:00:26.9]} 43. Ke3 {[%clk 0:00:37.1]} 43... Ke6
{[%clk 0:00:26.7]} 44. d5+ {[%clk 0:00:37.1]} 44... Kd7 {[%clk 0:00:27.1]} 45.
Bf4 {[%clk 0:00:37.4]} 1-0

[Event "*** Titled Tuesday Blitz"]
[Site "Chess.com"]
[Date "2021.03.30"]
[Round "2"]
[White "Witik"]
[Black "ural58"]
[Result "1-0"]
[WhiteElo "2712"]
[BlackElo "2492"]
[TimeControl "180+1"]
[EndTime "10:17:06 PDT"]
[Termination "Witik won by resignation"]

1. d4 {[%clk 0:03:00.9]} 1... d5 {[%clk 0:02:53.7]} 2. Bf4 {[%clk 0:03:00.4]}
2... Nf6 {[%clk 0:02:53]} 3. e3 {[%clk 0:03:00.6]} 3... c5 {[%clk 0:02:53.6]} 4.
c3 {[%clk 0:03:00.7]} 4... e6 {[%clk 0:02:54.1]} 5. Nd2 {[%clk 0:03:00]} 5...
Qb6 {[%clk 0:02:54.6]} 6. Qb3 {[%clk 0:02:52.5]} 6... Bd7 {[%clk 0:02:54.3]} 7.
Ngf3 {[%clk 0:02:47.6]} 7... Bc6 {[%clk 0:02:53.3]} 8. Ne5 {[%clk 0:02:39.9]}
8... Nbd7 {[%clk 0:02:52.5]} 9. Nxc6 {[%clk 0:02:39]} 9... bxc6 {[%clk
0:02:52.6]} 10. h3 {[%clk 0:02:22.5]} 10... Be7 {[%clk 0:02:48.8]} 11. Be2
{[%clk 0:02:21]} 11... O-O {[%clk 0:02:48.7]} 12. O-O {[%clk 0:02:21.1]} 12...
c4 {[%clk 0:02:46.1]} 13. Qc2 {[%clk 0:02:19.5]} 13... c5 {[%clk 0:02:45.5]} 14.
b3 {[%clk 0:02:15.9]} 14... cxb3 {[%clk 0:02:43.3]} 15. axb3 {[%clk 0:02:15.3]}
15... cxd4 {[%clk 0:02:41.4]} 16. exd4 {[%clk 0:02:09.8]} 16... Rfc8 {[%clk
0:02:40.3]} 17. Ba6 {[%clk 0:01:47.4]} 17... Rc6 {[%clk 0:02:30.9]} 18. Rfc1
{[%clk 0:01:42.7]} 18... Bd6 {[%clk 0:02:18.6]} 19. Be3 {[%clk 0:01:36.9]} 19...
Rb8 {[%clk 0:02:16.8]} 20. Qd3 {[%clk 0:01:28.7]} 20... h6 {[%clk 0:02:05.2]}
21. b4 {[%clk 0:01:17.4]} 21... Rc7 {[%clk 0:02:00.8]} 22. Nb3 {[%clk
0:01:11.5]} 22... Ne4 {[%clk 0:02:00.4]} 23. f3 {[%clk 0:01:07.6]} 23... Ng3
{[%clk 0:01:57.8]} 24. Nc5 {[%clk 0:01:06.3]} 24... Nf5 {[%clk 0:01:56.3]} 25.
Bf2 {[%clk 0:01:05.4]} 25... Bg3 {[%clk 0:01:54]} 26. Bxg3 {[%clk 0:00:50.4]}
26... Nxg3 {[%clk 0:01:54]} 27. Qd2 {[%clk 0:00:45.4]} 27... Nf5 {[%clk
0:01:43.6]} 28. Bd3 {[%clk 0:00:45.1]} 28... Nxc5 {[%clk 0:01:30.5]} 29. dxc5
{[%clk 0:00:39.5]} 29... Qc6 {[%clk 0:01:25.3]} 30. Ra6 {[%clk 0:00:36.4]} 30...
Qb7 {[%clk 0:01:21.2]} 31. Rca1 {[%clk 0:00:31.3]} 31... Ne7 {[%clk 0:01:20.9]}
32. Qf4 {[%clk 0:00:27.7]} 32... Rbc8 {[%clk 0:01:14.9]} 33. Kh2 {[%clk
0:00:15.5]} 33... Qa8 {[%clk 0:01:02.5]} 34. Qd6 {[%clk 0:00:13.6]} 34... Rb7
{[%clk 0:00:47.1]} 35. h4 {[%clk 0:00:12.2]} 35... Rd8 {[%clk 0:00:45]} 36. Rxa7
{[%clk 0:00:10.1]} 36... Rxa7 {[%clk 0:00:39.6]} 37. Rxa7 {[%clk 0:00:09.7]}
37... Qc8 {[%clk 0:00:37.8]} 38. Qxe7 {[%clk 0:00:09.7]} 38... Re8 {[%clk
0:00:36.9]} 39. Qxf7+ {[%clk 0:00:09.6]} 1-0

[Event "*** Titled Tuesday Blitz"]
[Site "Chess.com"]
[Date "2021.03.30"]
[Round "2"]
[White "BeyondMadness"]
[Black "lider34"]
[Result "1/2-1/2"]
[WhiteElo "2300"]
[BlackElo "2468"]
[TimeControl "180+1"]
[EndTime "10:17:07 PDT"]
[Termination "Game drawn by repetition"]

1. d4 {[%clk 0:03:00.9]} 1... Nf6 {[%clk 0:02:59.3]} 2. c4 {[%clk 0:03:00.8]}
2... c5 {[%clk 0:02:58.8]} 3. d5 {[%clk 0:03:00.2]} 3... b5 {[%clk 0:02:58.8]}
4. Nf3 {[%clk 0:02:59]} 4... g6 {[%clk 0:02:57.9]} 5. cxb5 {[%clk 0:02:59]} 5...
a6 {[%clk 0:02:57.3]} 6. b6 {[%clk 0:02:59.1]} 6... Bg7 {[%clk 0:02:52.3]} 7.
Nc3 {[%clk 0:02:58.2]} 7... d6 {[%clk 0:02:51]} 8. e4 {[%clk 0:02:57.1]} 8...
O-O {[%clk 0:02:50.9]} 9. Nd2 {[%clk 0:02:52.4]} 9... Qxb6 {[%clk 0:02:50.7]}
10. a4 {[%clk 0:02:48.1]} 10... Nbd7 {[%clk 0:02:48]} 11. a5 {[%clk 0:02:42]}
11... Qd8 {[%clk 0:02:47.7]} 12. Be2 {[%clk 0:02:38.2]} 12... Ne8 {[%clk
0:02:45.8]} 13. O-O {[%clk 0:02:36]} 13... Nc7 {[%clk 0:02:45.4]} 14. Nc4 {[%clk
0:02:34.8]} 14... Nb5 {[%clk 0:02:41.7]} 15. Na4 {[%clk 0:02:31.6]} 15... Nd4
{[%clk 0:02:37.7]} 16. Nab6 {[%clk 0:02:28.9]} 16... Nxb6 {[%clk 0:02:35.9]} 17.
Nxb6 {[%clk 0:02:26.2]} 17... Rb8 {[%clk 0:02:35.2]} 18. Bc4 {[%clk 0:02:16.5]}
18... Bb7 {[%clk 0:01:57.3]} 19. Be3 {[%clk 0:01:59.7]} 19... f5 {[%clk
0:01:46]} 20. exf5 {[%clk 0:01:44.4]} 20... Nxf5 {[%clk 0:01:37.6]} 21. Bc1
{[%clk 0:01:32]} 21... Bd4 {[%clk 0:01:30.7]} 22. Rb1 {[%clk 0:01:23.8]} 22...
Qc7 {[%clk 0:01:08]} 23. Bg5 {[%clk 0:01:12.4]} 23... Rf7 {[%clk 0:00:57.9]} 24.
Qd2 {[%clk 0:01:05.1]} 24... Rbf8 {[%clk 0:00:54]} 25. Kh1 {[%clk 0:00:54.5]}
25... Ng7 {[%clk 0:00:42.3]} 26. f3 {[%clk 0:00:51.9]} 26... Nh5 {[%clk
0:00:35.9]} 27. Bh6 {[%clk 0:00:49.3]} 27... Bg7 {[%clk 0:00:32.1]} 28. Bxg7
{[%clk 0:00:47.8]} 28... Kxg7 {[%clk 0:00:33]} 29. Rbe1 {[%clk 0:00:44]} 29...
Nf4 {[%clk 0:00:28.2]} 30. Re4 {[%clk 0:00:34.4]} 30... h6 {[%clk 0:00:26]} 31.
Rfe1 {[%clk 0:00:33.2]} 31... Nh5 {[%clk 0:00:22]} 32. Qe3 {[%clk 0:00:24.8]}
32... Re8 {[%clk 0:00:19.7]} 33. Re6 {[%clk 0:00:19.1]} 33... Nf4 {[%clk
0:00:17.7]} 34. Re4 {[%clk 0:00:17.9]} 34... Nh5 {[%clk 0:00:17.3]} 35. Re6
{[%clk 0:00:18]} 35... Nf4 {[%clk 0:00:17.1]} 36. Re4 {[%clk 0:00:18.1]} 36...
Nh5 {[%clk 0:00:16.8]} 1/2-1/2

[Event "*** Titled Tuesday Blitz"]
[Site "Chess.com"]
[Date "2021.03.30"]
[Round "2"]
[White "KeithArkell"]
[Black "dpruess"]
[Result "0-1"]
[WhiteElo "2621"]
[BlackElo "2352"]
[TimeControl "180+1"]
[EndTime "10:17:09 PDT"]
[Termination "dpruess won by resignation"]

1. d4 {[%clk 0:03:00.9]} 1... Nf6 {[%clk 0:02:57.7]} 2. Nf3 {[%clk 0:03:00.4]}
2... c5 {[%clk 0:02:57.5]} 3. d5 {[%clk 0:03:00.1]} 3... e6 {[%clk 0:02:56.9]}
4. Nc3 {[%clk 0:03:00.3]} 4... b5 {[%clk 0:02:46.8]} 5. dxe6 {[%clk 0:02:57.5]}
5... fxe6 {[%clk 0:02:47.7]} 6. Nxb5 {[%clk 0:02:57.6]} 6... d5 {[%clk 0:02:44]}
7. e3 {[%clk 0:02:55.4]} 7... Nc6 {[%clk 0:02:19.3]} 8. Nc3 {[%clk 0:02:50.7]}
8... Bd6 {[%clk 0:02:17.5]} 9. Bb5 {[%clk 0:02:46.1]} 9... Bd7 {[%clk
0:02:03.6]} 10. e4 {[%clk 0:02:44.9]} 10... d4 {[%clk 0:01:23]} 11. O-O {[%clk
0:02:10]} 11... O-O {[%clk 0:01:19.6]} 12. Re1 {[%clk 0:01:46]} 12... Qb8 {[%clk
0:00:43.1]} 13. Bxc6 {[%clk 0:01:17.2]} 13... Bxc6 {[%clk 0:00:44]} 14. e5
{[%clk 0:01:17.4]} 14... Bxf3 {[%clk 0:00:43.4]} 15. Qxf3 {[%clk 0:01:17.1]}
15... Bxe5 {[%clk 0:00:43.1]} 16. Ne4 {[%clk 0:01:14.3]} 16... Bxh2+ {[%clk
0:00:37.2]} 17. Kh1 {[%clk 0:01:06.6]} 17... Nxe4 {[%clk 0:00:34.9]} 18. Qxe4
{[%clk 0:01:05.8]} 18... Rxf2 {[%clk 0:00:34.7]} 19. Qxe6+ {[%clk 0:01:05.7]}
19... Kh8 {[%clk 0:00:34.7]} 20. Bg5 {[%clk 0:00:48.5]} 20... Qg3 {[%clk
0:00:33.8]} 21. Qe8+ {[%clk 0:00:38.9]} 21... Rf8 {[%clk 0:00:29.7]} 22. Qh5
{[%clk 0:00:37.7]} 22... g6 {[%clk 0:00:19]} 23. Qxh2 {[%clk 0:00:09.5]} 23...
Qxg5 {[%clk 0:00:18.1]} 24. Re2 {[%clk 0:00:07.5]} 24... Rf4 {[%clk 0:00:16.7]}
25. g3 {[%clk 0:00:06.4]} 25... Rf3 {[%clk 0:00:15.8]} 26. Kg2 {[%clk
0:00:04.1]} 26... Raf8 {[%clk 0:00:15.7]} 27. Rae1 {[%clk 0:00:03.5]} 27... Qd5
{[%clk 0:00:15.6]} 28. Kg1 {[%clk 0:00:02.9]} 28... Qg5 {[%clk 0:00:15.4]} 29.
Kg2 {[%clk 0:00:02.8]} 29... Qf5 {[%clk 0:00:15]} 30. Re7 {[%clk 0:00:02]} 30...
Rf2+ {[%clk 0:00:14.5]} 31. Kg1 {[%clk 0:00:02.3]} 31... Rxh2 {[%clk 0:00:14.7]}
0-1

[Event "*** Titled Tuesday Blitz"]
[Site "Chess.com"]
[Date "2021.03.30"]
[Round "2"]
[White "Funo09"]
[Black "WanderingPuppet"]
[Result "1-0"]
[WhiteElo "2755"]
[BlackElo "2512"]
[TimeControl "180+1"]
[EndTime "10:17:10 PDT"]
[Termination "Funo09 won on time"]

1. e4 {[%clk 0:03:00.9]} 1... c5 {[%clk 0:02:59.3]} 2. Nc3 {[%clk 0:02:51.8]}
2... d6 {[%clk 0:02:59.2]} 3. Nf3 {[%clk 0:02:51.6]} 3... a6 {[%clk 0:02:58.8]}
4. d4 {[%clk 0:02:51.9]} 4... cxd4 {[%clk 0:02:59.7]} 5. Nxd4 {[%clk 0:02:52.7]}
5... Nf6 {[%clk 0:02:59.8]} 6. a4 {[%clk 0:02:52.1]} 6... e5 {[%clk 0:02:56.8]}
7. Nf3 {[%clk 0:02:52]} 7... h6 {[%clk 0:02:54.4]} 8. Bc4 {[%clk 0:02:52.1]}
8... Be6 {[%clk 0:02:53.3]} 9. Qe2 {[%clk 0:02:51.4]} 9... Qc7 {[%clk
0:02:51.8]} 10. Bb3 {[%clk 0:02:48.8]} 10... Nbd7 {[%clk 0:02:51]} 11. O-O
{[%clk 0:02:48.6]} 11... Be7 {[%clk 0:02:44.4]} 12. Rd1 {[%clk 0:02:47.9]} 12...
O-O {[%clk 0:02:43.8]} 13. a5 {[%clk 0:02:40.4]} 13... Rac8 {[%clk 0:02:21.3]}
14. Be3 {[%clk 0:02:34.7]} 14... Bxb3 {[%clk 0:02:01.8]} 15. cxb3 {[%clk
0:02:34.2]} 15... Nc5 {[%clk 0:02:02.5]} 16. b4 {[%clk 0:02:25.2]} 16... Ne6
{[%clk 0:01:54.9]} 17. Bb6 {[%clk 0:02:21.5]} 17... Qc4 {[%clk 0:01:50.4]} 18.
Qc2 {[%clk 0:01:52.8]} 18... Qxb4 {[%clk 0:01:43.6]} 19. Ra4 {[%clk 0:01:52.1]}
19... Qb5 {[%clk 0:01:36.5]} 20. g3 {[%clk 0:01:45.5]} 20... Qc6 {[%clk
0:01:26.6]} 21. Qb3 {[%clk 0:01:43.2]} 21... Nc5 {[%clk 0:01:23.9]} 22. Bxc5
{[%clk 0:01:42.7]} 22... Qxc5 {[%clk 0:01:08.9]} 23. Nd5 {[%clk 0:01:16]} 23...
Nxd5 {[%clk 0:01:02.1]} 24. Rxd5 {[%clk 0:01:16.9]} 24... Qc2 {[%clk 0:00:55.5]}
25. Rb4 {[%clk 0:01:15.2]} 25... Qxb3 {[%clk 0:00:42.3]} 26. Rxb3 {[%clk
0:01:16.1]} 26... Rc7 {[%clk 0:00:41.3]} 27. Rb6 {[%clk 0:01:13.6]} 27... f5
{[%clk 0:00:40.2]} 28. Nd2 {[%clk 0:01:12.8]} 28... f4 {[%clk 0:00:37.5]} 29.
Kg2 {[%clk 0:01:07.7]} 29... fxg3 {[%clk 0:00:29]} 30. hxg3 {[%clk 0:01:05]}
30... Rf6 {[%clk 0:00:26.8]} 31. b3 {[%clk 0:01:01.2]} 31... Bf8 {[%clk
0:00:16.3]} 32. Nc4 {[%clk 0:01:01.3]} 32... Re6 {[%clk 0:00:07.5]} 33. Kh3
{[%clk 0:00:54.1]} 33... Kf7 {[%clk 0:00:06.9]} 34. Kg4 {[%clk 0:00:53.6]} 34...
Rg6+ {[%clk 0:00:04.2]} 35. Kf3 {[%clk 0:00:52.4]} 35... Rf6+ {[%clk 0:00:04.6]}
36. Ke3 {[%clk 0:00:52.9]} 36... Rg6 {[%clk 0:00:03.8]} 37. Rd1 {[%clk
0:00:46.5]} 37... Rf6 {[%clk 0:00:03.8]} 38. f4 {[%clk 0:00:45.8]} 38... Rg6
{[%clk 0:00:01.4]} 39. fxe5 {[%clk 0:00:40.8]} 39... Rxg3+ {[%clk 0:00:01.6]}
40. Kf4 {[%clk 0:00:41.4]} 40... Rg6 {[%clk 0:00:01.2]} 41. exd6 {[%clk
0:00:41]} 1-0